Workbook

Sheet 0-ScatterPlots
C2: x | D2: y
C3: 5 | D3: 5
C4: 10 | D4: 5
C5: 10 | D5: 3
C6: 16 | D6: 7
C7: 10 | D7: 11
C8: 10 | D8: 9
C9: 5 | D9: 9
C10: 5 | D10: 5
C18: x | D18: y
C19: 0 | D19: 0
C20: 10 | D20: 0
C21: 8 | D21: -1
C22: 10 | D22: 0
C23: 8 | D23: 1

Sheet 1- Arrow
A1: L: | B1: 14 | D1: x orig | E1: y orig | F1: x rot | G1: y rot | H1: x fin | I1: y fin
A2: Angle: | B2: 32 | C2: “deg” | D2: 0 | E2: 0 | F2: =D2*B$8-E2*B$7 -> 0 | G2: =E2*B$8+D2*B$7 -> 0 | H2: =F2+B$3 -> -7 | I2: =G2+B$4 -> 0
A3: offset x | B3: -7 | D3: =B1 -> 14 | E3: 0 | F3: =D3*B$8-E3*B$7 -> 11.87267335 | G3: =E3*B$8+D3*B$7 -> 7.418869699 | H3: =F3+B$3 -> 4.872673346 | I3: =G3+B$4 -> 7.418869699
A4: offset y | B4: 0 | D4: =0.8*B1 -> 11.2 | E4: =-B1/10 -> -1.4 | F4: 10.24002565 | G4: 4.747828425 | H4: 3.240025647 | I4: 4.747828425
D5: =B1 -> 14 | E5: 0 | F5: 11.87267335 | G5: 7.418869699 | H5: 4.872673346 | I5: 7.418869699
A6: Angle: | B6: =B2*PI()/180 -> 0.5585053606 | C6: “rad” | D6: =0.8*B1 -> 11.2 | E6: =B1/10 -> 1.4 | F6: 8.756251707 | G6: 7.122363094 | H6: 1.756251707 | I6: 7.122363094
A7: sine: | B7: =SIN(B6) -> 0.5299192642
A8: cosine: | B8: =COS(B6) -> 0.8480480962

Sheet 2- Inclined Plane (slider)
B2: User Input Space: | F2: Simulation Space | J2: Drawings Space
B3: Hill Angle q: | C3: 30 | D3: deg | F3: index | G3: time | H3: z, "EQ 1" | J3: Hill: x | K3: Hill: y | L3: Box: flat at origin | N3: Box:x | O3: Box:y
B4: v0 | C4: 4 | D4: m/s "uphill" | F4: 0 | G4: =F4*C$36 -> 0 | H4: =C$32+C$4*G4+0.5*C$33*G4^2 -> 0.6 | J4: 0 | K4: 0 | L4: x | M4: y | N4: =L5*$C$38-M5*$C$37+$C$41*$C$38 -> 1.932735433 | O4: =L5*$C$37+M5*$C$38+$C$41*$C$37 -> 1.115865323
B5: h0 | C5: 0.3 | D5: m | F5: 1 | G5: =F5*C$36 -> 0.01770940046 | H5: =C$32+C$4*G5+0.5*C$33*G5^2 -> 0.6700692258 | J5: =C29 -> 2 | K5: 0 | L5: 0 | M5: 0 | N5: =L6*$C$38-M6*$C$37+$C$41*$C$38 -> 2.105940514 | O5: =L6*$C$37+M6*$C$38+$C$41*$C$37 -> 1.215865323
B6: box size | C6: 0.2 | D6: m | F6: 2 | G6: =F6*C$36 -> 0.03541880092 | H6: =C$32+C$4*G6+0.5*C$33*G6^2 -> 0.7386016996 | J6: =C29 -> 2 | K6: =C30 -> 1.154700538 | L6: =C6 -> 0.2 | M6: 0 | N6: =L7*$C$38-M7*$C$37+$C$41*$C$38 -> 2.005940514 | O6: =L7*$C$37+M7*$C$38+$C$41*$C$37 -> 1.389070404
B7: g | C7: 9.8 | D7: m/s2 | F7: 3 | G7: =F7*C$36 -> 0.05312820138 | H7: =C$32+C$4*G7+0.5*C$33*G7^2 -> 0.8055974214 | J7: 0 | K7: 0 | L7: =C6 -> 0.2 | M7: =L7 -> 0.2 | N7: =L8*$C$38-M8*$C$37+$C$41*$C$38 -> 1.832735433 | O7: =L8*$C$37+M8*$C$38+$C$41*$C$37 -> 1.289070404
B8: when to draw? | C8: 45 | D8: (0 to 100) | F8: 4 | G8: =F8*C$36 -> 0.07083760184 | H8: =C$32+C$4*G8+0.5*C$33*G8^2 -> 0.8710563911 | L8: 0 | M8: =M7 -> 0.2 | N8: =L9*$C$38-M9*$C$37+$C$41*$C$38 -> 1.932735433 | O8: =L9*$C$37+M9*$C$38+$C$41*$C$37 -> 1.115865323
E9: This "Form | F9: 5 | G9: =F9*C$36 -> 0.0885470023 | H9: =C$32+C$4*G9+0.5*C$33*G9^2 -> 0.9349786087 | L9: 0 | M9: 0
E10: Slider" works | F10: 6 | G10: =F10*C$36 -> 0.1062564028 | H10: =C$32+C$4*G10+0.5*C$33*G10^2 -> 0.9973640744
E11: on a mac…but | F11: 7 | G11: =F11*C$36 -> 0.1239658032 | H11: =C$32+C$4*G11+0.5*C$33*G11^2 -> 1.058212788
E12: this "Active X" | F12: 8 | G12: =F12*C$36 -> 0.1416752037 | H12: =C$32+C$4*G12+0.5*C$33*G12^2 -> 1.11752475
E13: control is better. | F13: 9 | G13: =F13*C$36 -> 0.1593846041 | H13: =C$32+C$4*G13+0.5*C$33*G13^2 -> 1.175299959
E14: But Macs won't allow | F14: 10 | G14: =F14*C$36 -> 0.1770940046 | H14: =C$32+C$4*G14+0.5*C$33*G14^2 -> 1.231538417
E15: users to have "Active X" | F15: 11 | G15: =F15*C$36 -> 0.1948034051 | H15: =C$32+C$4*G15+0.5*C$33*G15^2 -> 1.286240122
B16: Some Comments: | E16: controls! | F16: 12 | G16: =F16*C$36 -> 0.2125128055 | H16: =C$32+C$4*G16+0.5*C$33*G16^2 -> 1.339405075
B17: I'm positioning the "box" | F17: 13 | G17: =F17*C$36 -> 0.230222206 | H17: =C$32+C$4*G17+0.5*C$33*G17^2 -> 1.391033277
B18: using it's lower left corner. | F18: 14 | G18: =F18*C$36 -> 0.2479316064 | H18: =C$32+C$4*G18+0.5*C$33*G18^2 -> 1.441124726
B19: I'm calling "z" the direction of motion | F19: 15 | G19: =F19*C$36 -> 0.2656410069 | H19: =C$32+C$4*G19+0.5*C$33*G19^2 -> 1.489679423
B20: I'm not letting the user choose my discretization | F20: 16 | G20: =F20*C$36 -> 0.2833504074 | H20: =C$32+C$4*G20+0.5*C$33*G20^2 -> 1.536697369
B21: of time; instead, I'm just using 100 time steps | F21: 17 | G21: =F21*C$36 -> 0.3010598078 | H21: =C$32+C$4*G21+0.5*C$33*G21^2 -> 1.582178562
B22: until it hits the bottom. | F22: 18 | G22: =F22*C$36 -> 0.3187692083 | H22: =C$32+C$4*G22+0.5*C$33*G22^2 -> 1.626123003
B23: This hill is 2m long. | F23: 19 | G23: =F23*C$36 -> 0.3364786087 | H23: =C$32+C$4*G23+0.5*C$33*G23^2 -> 1.668530692
B24: I'm restricting theta to be smaller than 45 deg. | F24: 20 | G24: =F24*C$36 -> 0.3541880092 | H24: =C$32+C$4*G24+0.5*C$33*G24^2 -> 1.709401629
F25: 21 | G25: =F25*C$36 -> 0.3718974097 | H25: =C$32+C$4*G25+0.5*C$33*G25^2 -> 1.748735815
B26: Calculations Space for constants: | F26: 22 | G26: =F26*C$36 -> 0.3896068101 | H26: =C$32+C$4*G26+0.5*C$33*G26^2 -> 1.786533248
B27: theta check | C27: =MIN(C3,45) -> 30 | D27: deg | F27: 23 | G27: =F27*C$36 -> 0.4073162106 | H27: =C$32+C$4*G27+0.5*C$33*G27^2 -> 1.822793929
B28: theta | C28: =C27*PI()/180 -> 0.5235987756 | D28: rad | F28: 24 | G28: =F28*C$36 -> 0.425025611 | H28: =C$32+C$4*G28+0.5*C$33*G28^2 -> 1.857517858
B29: max x | C29: 2 | D29: m | F29: 25 | G29: =F29*C$36 -> 0.4427350115 | H29: =C$32+C$4*G29+0.5*C$33*G29^2 -> 1.890705035
B30: hmax | C30: =C29*TAN(C28) -> 1.154700538 | D30: m | F30: 26 | G30: =F30*C$36 -> 0.460444412 | H30: =C$32+C$4*G30+0.5*C$33*G30^2 -> 1.922355459
B31: h0 true | C31: =MIN(C5,C30) -> 0.3 | D31: m | F31: 27 | G31: =F31*C$36 -> 0.4781538124 | H31: =C$32+C$4*G31+0.5*C$33*G31^2 -> 1.952469132
B32: z0 | C32: =C31/SIN(C28) -> 0.6 | D32: m | F32: 28 | G32: =F32*C$36 -> 0.4958632129 | H32: =C$32+C$4*G32+0.5*C$33*G32^2 -> 1.981046053
B33: az | C33: =-C7*SIN(C28) -> -4.9 | D33: m/s2 | F33: 29 | G33: =F33*C$36 -> 0.5135726133 | H33: =C$32+C$4*G33+0.5*C$33*G33^2 -> 2.008086222
B34: vbottom | C34: =-SQRT(C4^2-2*C33*C32) -> -4.677606225 | D34: m/s, "EQ3" | F34: 30 | G34: =F34*C$36 -> 0.5312820138 | H34: =C$32+C$4*G34+0.5*C$33*G34^2 -> 2.033589639
B35: tbottom | C35: =(C34-C4)/C33 -> 1.770940046 | D35: s; "duration", "EQ2" | F35: 31 | G35: =F35*C$36 -> 0.5489914143 | H35: =C$32+C$4*G35+0.5*C$33*G35^2 -> 2.057556303
B36: Dt | C36: =C35/100 -> 0.01770940046 | D36: s | F36: 32 | G36: =F36*C$36 -> 0.5667008147 | H36: =C$32+C$4*G36+0.5*C$33*G36^2 -> 2.079986216
B37: sin theta | C37: =SIN(C28) -> 0.5 | F37: 33 | G37: =F37*C$36 -> 0.5844102152 | H37: =C$32+C$4*G37+0.5*C$33*G37^2 -> 2.100879377
B38: cosine theta | C38: =COS(C28) -> 0.8660254038 | F38: 34 | G38: =F38*C$36 -> 0.6021196156 | H38: =C$32+C$4*G38+0.5*C$33*G38^2 -> 2.120235785
F39: 35 | G39: =F39*C$36 -> 0.6198290161 | H39: =C$32+C$4*G39+0.5*C$33*G39^2 -> 2.138055442
B40: Picked out t | C40: =VLOOKUP($C$8,$F$4:$H$104,2) -> 0.7969230207 | F40: 36 | G40: =F40*C$36 -> 0.6375384166 | H40: =C$32+C$4*G40+0.5*C$33*G40^2 -> 2.154338346
B41: Picked out z | C41: =VLOOKUP($C$8,$F$4:$H$104,3) -> 2.231730646 | F41: 37 | G41: =F41*C$36 -> 0.655247817 | H41: =C$32+C$4*G41+0.5*C$33*G41^2 -> 2.169084499
F42: 38 | G42: =F42*C$36 -> 0.6729572175 | H42: =C$32+C$4*G42+0.5*C$33*G42^2 -> 2.182293899
F43: 39 | G43: =F43*C$36 -> 0.6906666179 | H43: =C$32+C$4*G43+0.5*C$33*G43^2 -> 2.193966548
F44: 40 | G44: =F44*C$36 -> 0.7083760184 | H44: =C$32+C$4*G44+0.5*C$33*G44^2 -> 2.204102444
F45: 41 | G45: =F45*C$36 -> 0.7260854189 | H45: =C$32+C$4*G45+0.5*C$33*G45^2 -> 2.212701589
F46: 42 | G46: =F46*C$36 -> 0.7437948193 | H46: =C$32+C$4*G46+0.5*C$33*G46^2 -> 2.219763981
F47: 43 | G47: =F47*C$36 -> 0.7615042198 | H47: =C$32+C$4*G47+0.5*C$33*G47^2 -> 2.225289621
F48: 44 | G48: =F48*C$36 -> 0.7792136202 | H48: =C$32+C$4*G48+0.5*C$33*G48^2 -> 2.229278509
F49: 45 | G49: =F49*C$36 -> 0.7969230207 | H49: =C$32+C$4*G49+0.5*C$33*G49^2 -> 2.231730646
F50: 46 | G50: =F50*C$36 -> 0.8146324212 | H50: =C$32+C$4*G50+0.5*C$33*G50^2 -> 2.23264603
F51: 47 | G51: =F51*C$36 -> 0.8323418216 | H51: =C$32+C$4*G51+0.5*C$33*G51^2 -> 2.232024662
F52: 48 | G52: =F52*C$36 -> 0.8500512221 | H52: =C$32+C$4*G52+0.5*C$33*G52^2 -> 2.229866542
F53: 49 | G53: =F53*C$36 -> 0.8677606225 | H53: =C$32+C$4*G53+0.5*C$33*G53^2 -> 2.22617167
F54: 50 | G54: =F54*C$36 -> 0.885470023 | H54: =C$32+C$4*G54+0.5*C$33*G54^2 -> 2.220940046
F55: 51 | G55: =F55*C$36 -> 0.9031794235 | H55: =C$32+C$4*G55+0.5*C$33*G55^2 -> 2.21417167
F56: 52 | G56: =F56*C$36 -> 0.9208888239 | H56: =C$32+C$4*G56+0.5*C$33*G56^2 -> 2.205866542
F57: 53 | G57: =F57*C$36 -> 0.9385982244 | H57: =C$32+C$4*G57+0.5*C$33*G57^2 -> 2.196024662
F58: 54 | G58: =F58*C$36 -> 0.9563076248 | H58: =C$32+C$4*G58+0.5*C$33*G58^2 -> 2.18464603
F59: 55 | G59: =F59*C$36 -> 0.9740170253 | H59: =C$32+C$4*G59+0.5*C$33*G59^2 -> 2.171730646
F60: 56 | G60: =F60*C$36 -> 0.9917264258 | H60: =C$32+C$4*G60+0.5*C$33*G60^2 -> 2.157278509
F61: 57 | G61: =F61*C$36 -> 1.009435826 | H61: =C$32+C$4*G61+0.5*C$33*G61^2 -> 2.141289621
F62: 58 | G62: =F62*C$36 -> 1.027145227 | H62: =C$32+C$4*G62+0.5*C$33*G62^2 -> 2.123763981
F63: 59 | G63: =F63*C$36 -> 1.044854627 | H63: =C$32+C$4*G63+0.5*C$33*G63^2 -> 2.104701589
F64: 60 | G64: =F64*C$36 -> 1.062564028 | H64: =C$32+C$4*G64+0.5*C$33*G64^2 -> 2.084102444
F65: 61 | G65: =F65*C$36 -> 1.080273428 | H65: =C$32+C$4*G65+0.5*C$33*G65^2 -> 2.061966548
F66: 62 | G66: =F66*C$36 -> 1.097982829 | H66: =C$32+C$4*G66+0.5*C$33*G66^2 -> 2.038293899
F67: 63 | G67: =F67*C$36 -> 1.115692229 | H67: =C$32+C$4*G67+0.5*C$33*G67^2 -> 2.013084499
F68: 64 | G68: =F68*C$36 -> 1.133401629 | H68: =C$32+C$4*G68+0.5*C$33*G68^2 -> 1.986338346
F69: 65 | G69: =F69*C$36 -> 1.15111103 | H69: =C$32+C$4*G69+0.5*C$33*G69^2 -> 1.958055442
F70: 66 | G70: =F70*C$36 -> 1.16882043 | H70: =C$32+C$4*G70+0.5*C$33*G70^2 -> 1.928235785
F71: 67 | G71: =F71*C$36 -> 1.186529831 | H71: =C$32+C$4*G71+0.5*C$33*G71^2 -> 1.896879377
F72: 68 | G72: =F72*C$36 -> 1.204239231 | H72: =C$32+C$4*G72+0.5*C$33*G72^2 -> 1.863986216
F73: 69 | G73: =F73*C$36 -> 1.221948632 | H73: =C$32+C$4*G73+0.5*C$33*G73^2 -> 1.829556303
F74: 70 | G74: =F74*C$36 -> 1.239658032 | H74: =C$32+C$4*G74+0.5*C$33*G74^2 -> 1.793589639
F75: 71 | G75: =F75*C$36 -> 1.257367433 | H75: =C$32+C$4*G75+0.5*C$33*G75^2 -> 1.756086222
F76: 72 | G76: =F76*C$36 -> 1.275076833 | H76: =C$32+C$4*G76+0.5*C$33*G76^2 -> 1.717046053
F77: 73 | G77: =F77*C$36 -> 1.292786234 | H77: =C$32+C$4*G77+0.5*C$33*G77^2 -> 1.676469132
F78: 74 | G78: =F78*C$36 -> 1.310495634 | H78: =C$32+C$4*G78+0.5*C$33*G78^2 -> 1.634355459
F79: 75 | G79: =F79*C$36 -> 1.328205035 | H79: =C$32+C$4*G79+0.5*C$33*G79^2 -> 1.590705035
F80: 76 | G80: =F80*C$36 -> 1.345914435 | H80: =C$32+C$4*G80+0.5*C$33*G80^2 -> 1.545517858
F81: 77 | G81: =F81*C$36 -> 1.363623835 | H81: =C$32+C$4*G81+0.5*C$33*G81^2 -> 1.498793929
F82: 78 | G82: =F82*C$36 -> 1.381333236 | H82: =C$32+C$4*G82+0.5*C$33*G82^2 -> 1.450533248
F83: 79 | G83: =F83*C$36 -> 1.399042636 | H83: =C$32+C$4*G83+0.5*C$33*G83^2 -> 1.400735815
F84: 80 | G84: =F84*C$36 -> 1.416752037 | H84: =C$32+C$4*G84+0.5*C$33*G84^2 -> 1.349401629
F85: 81 | G85: =F85*C$36 -> 1.434461437 | H85: =C$32+C$4*G85+0.5*C$33*G85^2 -> 1.296530692
F86: 82 | G86: =F86*C$36 -> 1.452170838 | H86: =C$32+C$4*G86+0.5*C$33*G86^2 -> 1.242123003
F87: 83 | G87: =F87*C$36 -> 1.469880238 | H87: =C$32+C$4*G87+0.5*C$33*G87^2 -> 1.186178562
F88: 84 | G88: =F88*C$36 -> 1.487589639 | H88: =C$32+C$4*G88+0.5*C$33*G88^2 -> 1.128697369
F89: 85 | G89: =F89*C$36 -> 1.505299039 | H89: =C$32+C$4*G89+0.5*C$33*G89^2 -> 1.069679423
F90: 86 | G90: =F90*C$36 -> 1.52300844 | H90: =C$32+C$4*G90+0.5*C$33*G90^2 -> 1.009124726
F91: 87 | G91: =F91*C$36 -> 1.54071784 | H91: =C$32+C$4*G91+0.5*C$33*G91^2 -> 0.9470332768
F92: 88 | G92: =F92*C$36 -> 1.55842724 | H92: =C$32+C$4*G92+0.5*C$33*G92^2 -> 0.8834050754
F93: 89 | G93: =F93*C$36 -> 1.576136641 | H93: =C$32+C$4*G93+0.5*C$33*G93^2 -> 0.818240122
F94: 90 | G94: =F94*C$36 -> 1.593846041 | H94: =C$32+C$4*G94+0.5*C$33*G94^2 -> 0.7515384166
F95: 91 | G95: =F95*C$36 -> 1.611555442 | H95: =C$32+C$4*G95+0.5*C$33*G95^2 -> 0.6832999591
F96: 92 | G96: =F96*C$36 -> 1.629264842 | H96: =C$32+C$4*G96+0.5*C$33*G96^2 -> 0.6135247495
F97: 93 | G97: =F97*C$36 -> 1.646974243 | H97: =C$32+C$4*G97+0.5*C$33*G97^2 -> 0.542212788
F98: 94 | G98: =F98*C$36 -> 1.664683643 | H98: =C$32+C$4*G98+0.5*C$33*G98^2 -> 0.4693640744
F99: 95 | G99: =F99*C$36 -> 1.682393044 | H99: =C$32+C$4*G99+0.5*C$33*G99^2 -> 0.3949786087
F100: 96 | G100: =F100*C$36 -> 1.700102444 | H100: =C$32+C$4*G100+0.5*C$33*G100^2 -> 0.3190563911
F101: 97 | G101: =F101*C$36 -> 1.717811845 | H101: =C$32+C$4*G101+0.5*C$33*G101^2 -> 0.2415974214
F102: 98 | G102: =F102*C$36 -> 1.735521245 | H102: =C$32+C$4*G102+0.5*C$33*G102^2 -> 0.1626016996
F103: 99 | G103: =F103*C$36 -> 1.753230646 | H103: =C$32+C$4*G103+0.5*C$33*G103^2 -> 0.08206922582
F104: 100 | G104: =F104*C$36 -> 1.770940046 | H104: =C$32+C$4*G104+0.5*C$33*G104^2 -> 0

Sheet 3-Inclined Plane (button)
B2: User Input Space: | F2: Simulation Space | J2: Drawings Space
B3: Hill Angle q: | C3: 30 | D3: deg | F3: index | G3: time | H3: z, "EQ 1" | J3: Hill: x | K3: Hill: y | L3: Box: flat at origin | N3: Box:x | O3: Box:y
B4: v0 | C4: 4 | D4: m/s "uphill" | F4: 0 | G4: =F4*C$33 -> 0 | H4: =C$29+C$4*G4+0.5*C$30*G4^2 -> 0.6 | J4: 0 | K4: 0 | L4: x | M4: y | N4: =L5*$C$35-M5*$C$34+$C$38*$C$35 -> 0 | O4: =L5*$C$34+M5*$C$35+$C$38*$C$34 -> 0
B5: h0 | C5: 0.3 | D5: m | F5: 1 | G5: 0.01770940046 | H5: 0.6700692258 | J5: =C26 -> 2 | K5: 0 | L5: 0 | M5: 0 | N5: =L6*$C$35-M6*$C$34+$C$38*$C$35 -> 0.1732050808 | O5: =L6*$C$34+M6*$C$35+$C$38*$C$34 -> 0.1
B6: box size | C6: 0.2 | D6: m | F6: 2 | G6: 0.03541880092 | H6: 0.7386016996 | J6: =C26 -> 2 | K6: =C27 -> 1.154700538 | L6: =C6 -> 0.2 | M6: 0 | N6: =L7*$C$35-M7*$C$34+$C$38*$C$35 -> 0.07320508076 | O6: =L7*$C$34+M7*$C$35+$C$38*$C$34 -> 0.2732050808
B7: g | C7: 9.8 | D7: m/s2 | F7: 3 | G7: 0.05312820138 | H7: 0.8055974214 | J7: 0 | K7: 0 | L7: =C6 -> 0.2 | M7: =L7 -> 0.2 | N7: =L8*$C$35-M8*$C$34+$C$38*$C$35 -> -0.1 | O7: =L8*$C$34+M8*$C$35+$C$38*$C$34 -> 0.1732050808
B8: when to draw? | C8: 100 | D8: (0 to 100) | F8: 4 | G8: 0.07083760184 | H8: 0.8710563911 | L8: 0 | M8: =M7 -> 0.2 | N8: =L9*$C$35-M9*$C$34+$C$38*$C$35 -> 0 | O8: =L9*$C$34+M9*$C$35+$C$38*$C$34 -> 0
B9: Animation Speed | C9: 50 | D9: (1 to 100) | F9: 5 | G9: 0.0885470023 | H9: 0.9349786087 | L9: 0 | M9: 0
F10: 6 | G10: 0.1062564028 | H10: 0.9973640744
F11: 7 | G11: 0.1239658032 | H11: 1.058212788
F12: 8 | G12: 0.1416752037 | H12: 1.11752475
B13: Some Comments: | F13: 9 | G13: 0.1593846041 | H13: 1.175299959
B14: I'm positioning the "box" | F14: 10 | G14: 0.1770940046 | H14: 1.231538417
B15: using it's lower left corner. | F15: 11 | G15: 0.1948034051 | H15: 1.286240122
B16: I'm calling "z" the direction of motion | F16: 12 | G16: 0.2125128055 | H16: 1.339405075
B17: I'm not letting the user choose my discretization | F17: 13 | G17: 0.230222206 | H17: 1.391033277
B18: of time; instead, I'm just using 100 time steps | F18: 14 | G18: 0.2479316064 | H18: 1.441124726
B19: until it hits the bottom. | F19: 15 | G19: 0.2656410069 | H19: 1.489679423
B20: This hill is 2m long. | F20: 16 | G20: 0.2833504074 | H20: 1.536697369
B21: I'm restricting theta to be smaller than 45 deg. | F21: 17 | G21: 0.3010598078 | H21: 1.582178562
F22: 18 | G22: 0.3187692083 | H22: 1.626123003
B23: Calculations Space: | F23: 19 | G23: 0.3364786087 | H23: 1.668530692
B24: theta check | C24: =MIN(C3,45) -> 30 | D24: deg | F24: 20 | G24: 0.3541880092 | H24: 1.709401629
B25: theta | C25: =C24*PI()/180 -> 0.5235987756 | D25: rad | F25: 21 | G25: 0.3718974097 | H25: 1.748735815
B26: max x | C26: 2 | D26: m | F26: 22 | G26: 0.3896068101 | H26: 1.786533248
B27: hmax | C27: =C26*TAN(C25) -> 1.154700538 | D27: m | F27: 23 | G27: 0.4073162106 | H27: 1.822793929
B28: h0 true | C28: =MIN(C5,C27) -> 0.3 | D28: m | F28: 24 | G28: 0.425025611 | H28: 1.857517858
B29: z0 | C29: =C28/SIN(C25) -> 0.6 | D29: m | F29: 25 | G29: 0.4427350115 | H29: 1.890705035
B30: az | C30: =-C7*SIN(C25) -> -4.9 | D30: m/s2 | F30: 26 | G30: 0.460444412 | H30: 1.922355459
B31: vbottom | C31: =-SQRT(C4^2-2*C30*C29) -> -4.677606225 | D31: m/s, "EQ3" | F31: 27 | G31: 0.4781538124 | H31: 1.952469132
B32: tbottom | C32: =(C31-C4)/C30 -> 1.770940046 | D32: s; "duration", "EQ2" | F32: 28 | G32: 0.4958632129 | H32: 1.981046053
B33: Dt | C33: =C32/100 -> 0.01770940046 | D33: s | F33: 29 | G33: 0.5135726133 | H33: 2.008086222
B34: sin theta | C34: =SIN(C25) -> 0.5 | F34: 30 | G34: 0.5312820138 | H34: 2.033589639
B35: cosine theta | C35: =COS(C25) -> 0.8660254038 | F35: 31 | G35: 0.5489914143 | H35: 2.057556303
F36: 32 | G36: =F36*C$33 -> 0.5667008147 | H36: =C$29+C$4*G36+0.5*C$30*G36^2 -> 2.079986216
B37: Picked out t | C37: =VLOOKUP($C$8,$F$4:$H$104,2) -> 1.770940046 | F37: 33 | G37: 0.5844102152 | H37: 2.100879377
B38: Picked out z | C38: =VLOOKUP($C$8,$F$4:$H$104,3) -> 0 | F38: 34 | G38: 0.6021196156 | H38: 2.120235785
F39: 35 | G39: 0.6198290161 | H39: 2.138055442
F40: 36 | G40: 0.6375384166 | H40: 2.154338346
F41: 37 | G41: 0.655247817 | H41: 2.169084499
F42: 38 | G42: 0.6729572175 | H42: 2.182293899
F43: 39 | G43: 0.6906666179 | H43: 2.193966548
F44: 40 | G44: 0.7083760184 | H44: 2.204102444
F45: 41 | G45: 0.7260854189 | H45: 2.212701589
F46: 42 | G46: 0.7437948193 | H46: 2.219763981
F47: 43 | G47: 0.7615042198 | H47: 2.225289621
F48: 44 | G48: 0.7792136202 | H48: 2.229278509
F49: 45 | G49: 0.7969230207 | H49: 2.231730646
F50: 46 | G50: 0.8146324212 | H50: 2.23264603
F51: 47 | G51: 0.8323418216 | H51: 2.232024662
F52: 48 | G52: 0.8500512221 | H52: 2.229866542
F53: 49 | G53: 0.8677606225 | H53: 2.22617167
F54: 50 | G54: 0.885470023 | H54: 2.220940046
F55: 51 | G55: 0.9031794235 | H55: 2.21417167
F56: 52 | G56: 0.9208888239 | H56: 2.205866542
F57: 53 | G57: 0.9385982244 | H57: 2.196024662
F58: 54 | G58: 0.9563076248 | H58: 2.18464603
F59: 55 | G59: 0.9740170253 | H59: 2.171730646
F60: 56 | G60: 0.9917264258 | H60: 2.157278509
F61: 57 | G61: 1.009435826 | H61: 2.141289621
F62: 58 | G62: 1.027145227 | H62: 2.123763981
F63: 59 | G63: 1.044854627 | H63: 2.104701589
F64: 60 | G64: 1.062564028 | H64: 2.084102444
F65: 61 | G65: 1.080273428 | H65: 2.061966548
F66: 62 | G66: 1.097982829 | H66: 2.038293899
F67: 63 | G67: 1.115692229 | H67: 2.013084499
F68: 64 | G68: =F68*C$33 -> 1.133401629 | H68: =C$29+C$4*G68+0.5*C$30*G68^2 -> 1.986338346
F69: 65 | G69: 1.15111103 | H69: 1.958055442
F70: 66 | G70: 1.16882043 | H70: 1.928235785
F71: 67 | G71: 1.186529831 | H71: 1.896879377
F72: 68 | G72: 1.204239231 | H72: 1.863986216
F73: 69 | G73: 1.221948632 | H73: 1.829556303
F74: 70 | G74: 1.239658032 | H74: 1.793589639
F75: 71 | G75: 1.257367433 | H75: 1.756086222
F76: 72 | G76: 1.275076833 | H76: 1.717046053
F77: 73 | G77: 1.292786234 | H77: 1.676469132
F78: 74 | G78: 1.310495634 | H78: 1.634355459
F79: 75 | G79: 1.328205035 | H79: 1.590705035
F80: 76 | G80: 1.345914435 | H80: 1.545517858
F81: 77 | G81: 1.363623835 | H81: 1.498793929
F82: 78 | G82: 1.381333236 | H82: 1.450533248
F83: 79 | G83: 1.399042636 | H83: 1.400735815
F84: 80 | G84: 1.416752037 | H84: 1.349401629
F85: 81 | G85: 1.434461437 | H85: 1.296530692
F86: 82 | G86: 1.452170838 | H86: 1.242123003
F87: 83 | G87: 1.469880238 | H87: 1.186178562
F88: 84 | G88: 1.487589639 | H88: 1.128697369
F89: 85 | G89: 1.505299039 | H89: 1.069679423
F90: 86 | G90: 1.52300844 | H90: 1.009124726
F91: 87 | G91: 1.54071784 | H91: 0.9470332768
F92: 88 | G92: 1.55842724 | H92: 0.8834050754
F93: 89 | G93: 1.576136641 | H93: 0.818240122
F94: 90 | G94: 1.593846041 | H94: 0.7515384166
F95: 91 | G95: 1.611555442 | H95: 0.6832999591
F96: 92 | G96: 1.629264842 | H96: 0.6135247495
F97: 93 | G97: 1.646974243 | H97: 0.542212788
F98: 94 | G98: 1.664683643 | H98: 0.4693640744
F99: 95 | G99: 1.682393044 | H99: 0.3949786087
F100: 96 | G100: =F100*C$33 -> 1.700102444 | H100: =C$29+C$4*G100+0.5*C$30*G100^2 -> 0.3190563911
F101: 97 | G101: 1.717811845 | H101: 0.2415974214
F102: 98 | G102: 1.735521245 | H102: 0.1626016996
F103: 99 | G103: 1.753230646 | H103: 0.08206922582
F104: 100 | G104: 1.770940046 | H104: 0

Sheet 4-Clock (slider)
H1: Sec. Hand coords
E2: Index # | F2: Time | G2: theta | H2: Tipx | I2: Tip y | L2: Drawing Data: every "line" needs an x and y column:
B3: Radius | C3: 10 | D3: cm | E3: 0 | F3: 0 | G3: =C$6*F3 -> 0 | H3: =C$3*SIN(G3) -> 0 | I3: =C$3*COS(G3) -> 10
B4: Time step | C4: 0.5 | D4: s | E4: 1 | F4: =F3+C$4 -> 0.5 | G4: =C$6*F4 -> 0.05235987756 | H4: =C$3*SIN(G4) -> 0.5233595624 | I4: =C$3*COS(G4) -> 9.986295348 | L4: Outer Circle | O4: Inner Circle | R4: Arrow
B5: arrow fraction | C5: 0.1 | E5: 2 | F5: =F4+C$4 -> 1 | G5: 0.1047197551 | H5: 1.045284633 | I5: 9.945218954 | K5: angle | L5: x | M5: y | O5: x | P5: y | R5: x | S5: y
B6: Omega | C6: =2*PI()/60 -> 0.1047197551 | D6: rad/s | E6: 3 | F6: 1.5 | G6: 0.1570796327 | H6: 1.56434465 | I6: 9.876883406 | K6: 0 | L6: =($C$3+1)*COS($K6*PI()/180) -> 11 | M6: =($C$3+1)*SIN($K6*PI()/180) -> 0 | O6: =($C$3/10)*COS($K6*PI()/180) -> 1 | P6: =($C$3/10)*SIN($K6*PI()/180) -> 0 | R6: 0 | S6: 0 | T6: base
E7: 4 | F7: 2 | G7: 0.2094395102 | H7: 2.079116908 | I7: 9.781476007 | K7: 10 | L7: =($C$3+1)*COS($K7*PI()/180) -> 10.83288528 | M7: =($C$3+1)*SIN($K7*PI()/180) -> 1.910129954 | O7: =($C$3/10)*COS($K7*PI()/180) -> 0.984807753 | P7: =($C$3/10)*SIN($K7*PI()/180) -> 0.1736481777 | R7: =C10 -> 2.079116908 | S7: =C11 -> -9.781476007 | T7: tip
E8: 5 | F8: 2.5 | G8: 0.2617993878 | H8: 2.588190451 | I8: 9.659258263 | K8: 20 | L8: 10.33661883 | M8: 3.762221577 | O8: 0.9396926208 | P8: 0.3420201433 | R8: =R7-$C$5*$C$3*SIN($C$12-PI()/6) -> 1.409986302 | S8: =S7-$C$5*$C$3*COS($C$12-PI()/6) -> -9.038331182 | T8: right wing using 30deg arrowhead
B9: Current Index: | C9: 56 | E9: 6 | F9: 3 | G9: 0.3141592654 | H9: 3.090169944 | I9: 9.510565163 | K9: 30 | L9: 9.526279442 | M9: 5.5 | O9: 0.8660254038 | P9: 0.5 | R9: =R7 -> 2.079116908 | S9: =S7 -> -9.781476007 | T9: tip
B10: Current x: | C10: =VLOOKUP($C$9,$E$3:$I$123,4,1) -> 2.079116908 | D10: cm | E10: 7 | F10: 3.5 | G10: 0.3665191429 | H10: 3.583679495 | I10: 9.335804265 | K10: 40 | L10: 8.426488874 | M10: 7.070663707 | O10: 0.7660444431 | P10: 0.6427876097 | R10: =R9-$C$5*$C$3*SIN($C$12+PI()/6) -> 2.388133903 | S10: =S9-$C$5*$C$3*COS($C$12+PI()/6) -> -8.830419491 | T10: left wing using 30deg arrowhead
B11: Current y: | C11: =VLOOKUP($C$9,$E$3:$I$123,5,1) -> -9.781476007 | D11: cm | E11: 8 | F11: 4 | G11: 0.4188790205 | H11: 4.067366431 | I11: 9.135454576 | K11: 50 | L11: 7.070663707 | M11: 8.426488874 | O11: 0.6427876097 | P11: 0.7660444431
B12: Current angle | C12: =VLOOKUP($C$9,$E$3:$I$123,3,1) -> 2.932153143 | D12: rad | E12: 9 | F12: 4.5 | G12: 0.471238898 | H12: 4.539904997 | I12: 8.910065242 | K12: 60 | L12: 5.5 | M12: 9.526279442 | O12: 0.5 | P12: 0.8660254038
E13: 10 | F13: 5 | G13: 0.5235987756 | H13: 5 | I13: 8.660254038 | K13: 70 | L13: 3.762221577 | M13: 10.33661883 | O13: 0.3420201433 | P13: 0.9396926208
E14: 11 | F14: 5.5 | G14: 0.5759586532 | H14: 5.44639035 | I14: 8.386705679 | K14: 80 | L14: 1.910129954 | M14: 10.83288528 | O14: 0.1736481777 | P14: 0.984807753
E15: 12 | F15: 6 | G15: 0.6283185307 | H15: 5.877852523 | I15: 8.090169944 | K15: 90 | L15: 6.738316502e-16 | M15: 11 | O15: 6.125742275e-17 | P15: 1
E16: 13 | F16: 6.5 | G16: 0.6806784083 | H16: 6.29320391 | I16: 7.771459615 | K16: 100 | L16: -1.910129954 | M16: 10.83288528 | O16: -0.1736481777 | P16: 0.984807753
E17: 14 | F17: 7 | G17: 0.7330382858 | H17: 6.691306064 | I17: 7.431448255 | K17: 110 | L17: -3.762221577 | M17: 10.33661883 | O17: -0.3420201433 | P17: 0.9396926208
E18: 15 | F18: 7.5 | G18: 0.7853981634 | H18: 7.071067812 | I18: 7.071067812 | K18: 120 | L18: -5.5 | M18: 9.526279442 | O18: -0.5 | P18: 0.8660254038
E19: 16 | F19: 8 | G19: 0.837758041 | H19: 7.431448255 | I19: 6.691306064 | K19: 130 | L19: -7.070663707 | M19: 8.426488874 | O19: -0.6427876097 | P19: 0.7660444431
E20: 17 | F20: 8.5 | G20: 0.8901179185 | H20: 7.771459615 | I20: 6.29320391 | K20: 140 | L20: -8.426488874 | M20: 7.070663707 | O20: -0.7660444431 | P20: 0.6427876097
E21: 18 | F21: 9 | G21: 0.9424777961 | H21: 8.090169944 | I21: 5.877852523 | K21: 150 | L21: -9.526279442 | M21: 5.5 | O21: -0.8660254038 | P21: 0.5
E22: 19 | F22: 9.5 | G22: 0.9948376736 | H22: 8.386705679 | I22: 5.44639035 | K22: 160 | L22: -10.33661883 | M22: 3.762221577 | O22: -0.9396926208 | P22: 0.3420201433
E23: 20 | F23: 10 | G23: 1.047197551 | H23: 8.660254038 | I23: 5 | K23: 170 | L23: -10.83288528 | M23: 1.910129954 | O23: -0.984807753 | P23: 0.1736481777
E24: 21 | F24: 10.5 | G24: 1.099557429 | H24: 8.910065242 | I24: 4.539904997 | K24: 180 | L24: -11 | M24: 1.3476633e-15 | O24: -1 | P24: 1.225148455e-16
E25: 22 | F25: 11 | G25: 1.151917306 | H25: 9.135454576 | I25: 4.067366431 | K25: 190 | L25: -10.83288528 | M25: -1.910129954 | O25: -0.984807753 | P25: -0.1736481777
E26: 23 | F26: 11.5 | G26: 1.204277184 | H26: 9.335804265 | I26: 3.583679495 | K26: 200 | L26: -10.33661883 | M26: -3.762221577 | O26: -0.9396926208 | P26: -0.3420201433
E27: 24 | F27: 12 | G27: 1.256637061 | H27: 9.510565163 | I27: 3.090169944 | K27: 210 | L27: -9.526279442 | M27: -5.5 | O27: -0.8660254038 | P27: -0.5
E28: 25 | F28: 12.5 | G28: 1.308996939 | H28: 9.659258263 | I28: 2.588190451 | K28: 220 | L28: -8.426488874 | M28: -7.070663707 | O28: -0.7660444431 | P28: -0.6427876097
E29: 26 | F29: 13 | G29: 1.361356817 | H29: 9.781476007 | I29: 2.079116908 | K29: 230 | L29: -7.070663707 | M29: -8.426488874 | O29: -0.6427876097 | P29: -0.7660444431
E30: 27 | F30: 13.5 | G30: 1.413716694 | H30: 9.876883406 | I30: 1.56434465 | K30: 240 | L30: -5.5 | M30: -9.526279442 | O30: -0.5 | P30: -0.8660254038
E31: 28 | F31: 14 | G31: 1.466076572 | H31: 9.945218954 | I31: 1.045284633 | K31: 250 | L31: -3.762221577 | M31: -10.33661883 | O31: -0.3420201433 | P31: -0.9396926208
E32: 29 | F32: 14.5 | G32: 1.518436449 | H32: 9.986295348 | I32: 0.5233595624 | K32: 260 | L32: -1.910129954 | M32: -10.83288528 | O32: -0.1736481777 | P32: -0.984807753
E33: 30 | F33: 15 | G33: 1.570796327 | H33: 10 | I33: 6.125742275e-16 | K33: 270 | L33: -2.021494951e-15 | M33: -11 | O33: -1.837722682e-16 | P33: -1
E34: 31 | F34: 15.5 | G34: 1.623156204 | H34: 9.986295348 | I34: -0.5233595624 | K34: 280 | L34: 1.910129954 | M34: -10.83288528 | O34: 0.1736481777 | P34: -0.984807753
E35: 32 | F35: 16 | G35: 1.675516082 | H35: 9.945218954 | I35: -1.045284633 | K35: 290 | L35: 3.762221577 | M35: -10.33661883 | O35: 0.3420201433 | P35: -0.9396926208
E36: 33 | F36: 16.5 | G36: 1.727875959 | H36: 9.876883406 | I36: -1.56434465 | K36: 300 | L36: 5.5 | M36: -9.526279442 | O36: 0.5 | P36: -0.8660254038
E37: 34 | F37: 17 | G37: 1.780235837 | H37: 9.781476007 | I37: -2.079116908 | K37: 310 | L37: 7.070663707 | M37: -8.426488874 | O37: 0.6427876097 | P37: -0.7660444431
E38: 35 | F38: 17.5 | G38: 1.832595715 | H38: 9.659258263 | I38: -2.588190451 | K38: 320 | L38: 8.426488874 | M38: -7.070663707 | O38: 0.7660444431 | P38: -0.6427876097
E39: 36 | F39: 18 | G39: 1.884955592 | H39: 9.510565163 | I39: -3.090169944 | K39: 330 | L39: 9.526279442 | M39: -5.5 | O39: 0.8660254038 | P39: -0.5
E40: 37 | F40: 18.5 | G40: 1.93731547 | H40: 9.335804265 | I40: -3.583679495 | K40: 340 | L40: 10.33661883 | M40: -3.762221577 | O40: 0.9396926208 | P40: -0.3420201433
E41: 38 | F41: 19 | G41: 1.989675347 | H41: 9.135454576 | I41: -4.067366431 | K41: 350 | L41: 10.83288528 | M41: -1.910129954 | O41: 0.984807753 | P41: -0.1736481777
E42: 39 | F42: 19.5 | G42: 2.042035225 | H42: 8.910065242 | I42: -4.539904997 | K42: 360 | L42: 11 | M42: -2.695326601e-15 | O42: 1 | P42: -2.45029691e-16
E43: 40 | F43: 20 | G43: 2.094395102 | H43: 8.660254038 | I43: -5
E44: 41 | F44: 20.5 | G44: 2.14675498 | H44: 8.386705679 | I44: -5.44639035
E45: 42 | F45: 21 | G45: 2.199114858 | H45: 8.090169944 | I45: -5.877852523
E46: 43 | F46: 21.5 | G46: 2.251474735 | H46: 7.771459615 | I46: -6.29320391
E47: 44 | F47: 22 | G47: 2.303834613 | H47: 7.431448255 | I47: -6.691306064
E48: 45 | F48: 22.5 | G48: 2.35619449 | H48: 7.071067812 | I48: -7.071067812
E49: 46 | F49: 23 | G49: 2.408554368 | H49: 6.691306064 | I49: -7.431448255
E50: 47 | F50: 23.5 | G50: 2.460914245 | H50: 6.29320391 | I50: -7.771459615
E51: 48 | F51: 24 | G51: 2.513274123 | H51: 5.877852523 | I51: -8.090169944
E52: 49 | F52: 24.5 | G52: 2.565634 | H52: 5.44639035 | I52: -8.386705679
E53: 50 | F53: 25 | G53: 2.617993878 | H53: 5 | I53: -8.660254038
E54: 51 | F54: 25.5 | G54: 2.670353756 | H54: 4.539904997 | I54: -8.910065242
E55: 52 | F55: 26 | G55: 2.722713633 | H55: 4.067366431 | I55: -9.135454576
E56: 53 | F56: 26.5 | G56: 2.775073511 | H56: 3.583679495 | I56: -9.335804265
E57: 54 | F57: 27 | G57: 2.827433388 | H57: 3.090169944 | I57: -9.510565163
E58: 55 | F58: 27.5 | G58: 2.879793266 | H58: 2.588190451 | I58: -9.659258263
E59: 56 | F59: 28 | G59: 2.932153143 | H59: 2.079116908 | I59: -9.781476007
E60: 57 | F60: 28.5 | G60: 2.984513021 | H60: 1.56434465 | I60: -9.876883406
E61: 58 | F61: 29 | G61: 3.036872898 | H61: 1.045284633 | I61: -9.945218954
E62: 59 | F62: 29.5 | G62: 3.089232776 | H62: 0.5233595624 | I62: -9.986295348
E63: 60 | F63: 30 | G63: 3.141592654 | H63: 1.225148455e-15 | I63: -10
E64: 61 | F64: 30.5 | G64: 3.193952531 | H64: -0.5233595624 | I64: -9.986295348
E65: 62 | F65: 31 | G65: 3.246312409 | H65: -1.045284633 | I65: -9.945218954
E66: 63 | F66: 31.5 | G66: 3.298672286 | H66: -1.56434465 | I66: -9.876883406
E67: 64 | F67: 32 | G67: 3.351032164 | H67: -2.079116908 | I67: -9.781476007
E68: 65 | F68: 32.5 | G68: =C$6*F68 -> 3.403392041 | H68: =C$3*SIN(G68) -> -2.588190451 | I68: =C$3*COS(G68) -> -9.659258263
E69: 66 | F69: =F68+C$4 -> 33 | G69: 3.455751919 | H69: -3.090169944 | I69: -9.510565163
E70: 67 | F70: 33.5 | G70: 3.508111797 | H70: -3.583679495 | I70: -9.335804265
E71: 68 | F71: 34 | G71: 3.560471674 | H71: -4.067366431 | I71: -9.135454576
E72: 69 | F72: 34.5 | G72: 3.612831552 | H72: -4.539904997 | I72: -8.910065242
E73: 70 | F73: 35 | G73: 3.665191429 | H73: -5 | I73: -8.660254038
E74: 71 | F74: 35.5 | G74: 3.717551307 | H74: -5.44639035 | I74: -8.386705679
E75: 72 | F75: 36 | G75: 3.769911184 | H75: -5.877852523 | I75: -8.090169944
E76: 73 | F76: 36.5 | G76: 3.822271062 | H76: -6.29320391 | I76: -7.771459615
E77: 74 | F77: 37 | G77: 3.874630939 | H77: -6.691306064 | I77: -7.431448255
E78: 75 | F78: 37.5 | G78: 3.926990817 | H78: -7.071067812 | I78: -7.071067812
E79: 76 | F79: 38 | G79: 3.979350695 | H79: -7.431448255 | I79: -6.691306064
E80: 77 | F80: 38.5 | G80: 4.031710572 | H80: -7.771459615 | I80: -6.29320391
E81: 78 | F81: 39 | G81: 4.08407045 | H81: -8.090169944 | I81: -5.877852523
E82: 79 | F82: 39.5 | G82: 4.136430327 | H82: -8.386705679 | I82: -5.44639035
E83: 80 | F83: 40 | G83: 4.188790205 | H83: -8.660254038 | I83: -5
E84: 81 | F84: 40.5 | G84: 4.241150082 | H84: -8.910065242 | I84: -4.539904997
E85: 82 | F85: 41 | G85: 4.29350996 | H85: -9.135454576 | I85: -4.067366431
E86: 83 | F86: 41.5 | G86: 4.345869837 | H86: -9.335804265 | I86: -3.583679495
E87: 84 | F87: 42 | G87: 4.398229715 | H87: -9.510565163 | I87: -3.090169944
E88: 85 | F88: 42.5 | G88: 4.450589593 | H88: -9.659258263 | I88: -2.588190451
E89: 86 | F89: 43 | G89: 4.50294947 | H89: -9.781476007 | I89: -2.079116908
E90: 87 | F90: 43.5 | G90: 4.555309348 | H90: -9.876883406 | I90: -1.56434465
E91: 88 | F91: 44 | G91: 4.607669225 | H91: -9.945218954 | I91: -1.045284633
E92: 89 | F92: 44.5 | G92: 4.660029103 | H92: -9.986295348 | I92: -0.5233595624
E93: 90 | F93: 45 | G93: 4.71238898 | H93: -10 | I93: -1.837722682e-15
E94: 91 | F94: 45.5 | G94: 4.764748858 | H94: -9.986295348 | I94: 0.5233595624
E95: 92 | F95: 46 | G95: 4.817108736 | H95: -9.945218954 | I95: 1.045284633
E96: 93 | F96: 46.5 | G96: 4.869468613 | H96: -9.876883406 | I96: 1.56434465
E97: 94 | F97: 47 | G97: 4.921828491 | H97: -9.781476007 | I97: 2.079116908
E98: 95 | F98: 47.5 | G98: 4.974188368 | H98: -9.659258263 | I98: 2.588190451
E99: 96 | F99: 48 | G99: 5.026548246 | H99: -9.510565163 | I99: 3.090169944
E100: 97 | F100: 48.5 | G100: 5.078908123 | H100: -9.335804265 | I100: 3.583679495
E101: 98 | F101: 49 | G101: 5.131268001 | H101: -9.135454576 | I101: 4.067366431
E102: 99 | F102: 49.5 | G102: 5.183627878 | H102: -8.910065242 | I102: 4.539904997
E103: 100 | F103: 50 | G103: 5.235987756 | H103: -8.660254038 | I103: 5
E104: 101 | F104: 50.5 | G104: 5.288347634 | H104: -8.386705679 | I104: 5.44639035
E105: 102 | F105: 51 | G105: 5.340707511 | H105: -8.090169944 | I105: 5.877852523
E106: 103 | F106: 51.5 | G106: 5.393067389 | H106: -7.771459615 | I106: 6.29320391
E107: 104 | F107: 52 | G107: 5.445427266 | H107: -7.431448255 | I107: 6.691306064
E108: 105 | F108: 52.5 | G108: 5.497787144 | H108: -7.071067812 | I108: 7.071067812
E109: 106 | F109: 53 | G109: 5.550147021 | H109: -6.691306064 | I109: 7.431448255
E110: 107 | F110: 53.5 | G110: 5.602506899 | H110: -6.29320391 | I110: 7.771459615
E111: 108 | F111: 54 | G111: 5.654866776 | H111: -5.877852523 | I111: 8.090169944
E112: 109 | F112: 54.5 | G112: 5.707226654 | H112: -5.44639035 | I112: 8.386705679
E113: 110 | F113: 55 | G113: 5.759586532 | H113: -5 | I113: 8.660254038
E114: 111 | F114: 55.5 | G114: 5.811946409 | H114: -4.539904997 | I114: 8.910065242
E115: 112 | F115: 56 | G115: 5.864306287 | H115: -4.067366431 | I115: 9.135454576
E116: 113 | F116: 56.5 | G116: 5.916666164 | H116: -3.583679495 | I116: 9.335804265
E117: 114 | F117: 57 | G117: 5.969026042 | H117: -3.090169944 | I117: 9.510565163
E118: 115 | F118: 57.5 | G118: 6.021385919 | H118: -2.588190451 | I118: 9.659258263
E119: 116 | F119: 58 | G119: 6.073745797 | H119: -2.079116908 | I119: 9.781476007
E120: 117 | F120: 58.5 | G120: 6.126105675 | H120: -1.56434465 | I120: 9.876883406
E121: 118 | F121: 59 | G121: 6.178465552 | H121: -1.045284633 | I121: 9.945218954
E122: 119 | F122: 59.5 | G122: 6.23082543 | H122: -0.5233595624 | I122: 9.986295348
E123: 120 | F123: 60 | G123: 6.283185307 | H123: -2.45029691e-15 | I123: 10

Sheet 5-Clock (Button)
H1: Sec. Hand coords
E2: Index # | F2: Time | G2: theta | H2: Tipx | I2: Tip y | L2: Drawing Data: every "line" needs an x and y column:
B3: Radius | C3: 10 | D3: cm | E3: 0 | F3: 0 | G3: =C$6*F3 -> 0 | H3: =C$3*SIN(G3) -> 0 | I3: =C$3*COS(G3) -> 10
B4: Time step | C4: 0.5 | D4: s | E4: 1 | F4: =F3+C$4 -> 0.5 | G4: =C$6*F4 -> 0.05235987756 | H4: =C$3*SIN(G4) -> 0.5233595624 | I4: =C$3*COS(G4) -> 9.986295348 | L4: Outer Circle | O4: Inner Circle | R4: Arrow
B5: arrow fraction | C5: 0.1 | E5: 2 | F5: =F4+C$4 -> 1 | G5: 0.1047197551 | H5: 1.045284633 | I5: 9.945218954 | K5: angle | L5: x | M5: y | O5: x | P5: y | R5: x | S5: y
B6: Omega | C6: =2*PI()/60 -> 0.1047197551 | D6: rad/s | E6: 3 | F6: 1.5 | G6: 0.1570796327 | H6: 1.56434465 | I6: 9.876883406 | K6: 0 | L6: =($C$3+1)*COS($K6*PI()/180) -> 11 | M6: =($C$3+1)*SIN($K6*PI()/180) -> 0 | O6: =($C$3/10)*COS($K6*PI()/180) -> 1 | P6: =($C$3/10)*SIN($K6*PI()/180) -> 0 | R6: 0 | S6: 0 | T6: base
B7: anim. Speed | C7: 150 | D7: (1 to 1000) | E7: 4 | F7: 2 | G7: 0.2094395102 | H7: 2.079116908 | I7: 9.781476007 | K7: 10 | L7: =($C$3+1)*COS($K7*PI()/180) -> 10.83288528 | M7: =($C$3+1)*SIN($K7*PI()/180) -> 1.910129954 | O7: =($C$3/10)*COS($K7*PI()/180) -> 0.984807753 | P7: =($C$3/10)*SIN($K7*PI()/180) -> 0.1736481777 | R7: =C10 -> 0 | S7: =C11 -> 10 | T7: tip
E8: 5 | F8: 2.5 | G8: 0.2617993878 | H8: 2.588190451 | I8: 9.659258263 | K8: 20 | L8: 10.33661883 | M8: 3.762221577 | O8: 0.9396926208 | P8: 0.3420201433 | R8: =R7-$C$5*$C$3*SIN($C$12-PI()/6) -> 0.5 | S8: =S7-$C$5*$C$3*COS($C$12-PI()/6) -> 9.133974596 | T8: right wing using 30deg arrowhead
B9: Current Index: | C9: 0 | E9: 6 | F9: 3 | G9: 0.3141592654 | H9: 3.090169944 | I9: 9.510565163 | K9: 30 | L9: 9.526279442 | M9: 5.5 | O9: 0.8660254038 | P9: 0.5 | R9: =R7 -> 0 | S9: =S7 -> 10 | T9: tip
B10: Current x: | C10: =VLOOKUP($C$9,$E$3:$I$123,4,1) -> 0 | D10: cm | E10: 7 | F10: 3.5 | G10: 0.3665191429 | H10: 3.583679495 | I10: 9.335804265 | K10: 40 | L10: 8.426488874 | M10: 7.070663707 | O10: 0.7660444431 | P10: 0.6427876097 | R10: =R9-$C$5*$C$3*SIN($C$12+PI()/6) -> -0.5 | S10: =S9-$C$5*$C$3*COS($C$12+PI()/6) -> 9.133974596 | T10: left wing using 30deg arrowhead
B11: Current y: | C11: =VLOOKUP($C$9,$E$3:$I$123,5,1) -> 10 | D11: cm | E11: 8 | F11: 4 | G11: 0.4188790205 | H11: 4.067366431 | I11: 9.135454576 | K11: 50 | L11: 7.070663707 | M11: 8.426488874 | O11: 0.6427876097 | P11: 0.7660444431
B12: Current angle | C12: =VLOOKUP($C$9,$E$3:$I$123,3,1) -> 0 | D12: rad | E12: 9 | F12: 4.5 | G12: 0.471238898 | H12: 4.539904997 | I12: 8.910065242 | K12: 60 | L12: 5.5 | M12: 9.526279442 | O12: 0.5 | P12: 0.8660254038
E13: 10 | F13: 5 | G13: 0.5235987756 | H13: 5 | I13: 8.660254038 | K13: 70 | L13: 3.762221577 | M13: 10.33661883 | O13: 0.3420201433 | P13: 0.9396926208
E14: 11 | F14: 5.5 | G14: 0.5759586532 | H14: 5.44639035 | I14: 8.386705679 | K14: 80 | L14: 1.910129954 | M14: 10.83288528 | O14: 0.1736481777 | P14: 0.984807753
E15: 12 | F15: 6 | G15: 0.6283185307 | H15: 5.877852523 | I15: 8.090169944 | K15: 90 | L15: 6.738316502e-16 | M15: 11 | O15: 6.125742275e-17 | P15: 1
E16: 13 | F16: 6.5 | G16: 0.6806784083 | H16: 6.29320391 | I16: 7.771459615 | K16: 100 | L16: -1.910129954 | M16: 10.83288528 | O16: -0.1736481777 | P16: 0.984807753
E17: 14 | F17: 7 | G17: 0.7330382858 | H17: 6.691306064 | I17: 7.431448255 | K17: 110 | L17: -3.762221577 | M17: 10.33661883 | O17: -0.3420201433 | P17: 0.9396926208
E18: 15 | F18: 7.5 | G18: 0.7853981634 | H18: 7.071067812 | I18: 7.071067812 | K18: 120 | L18: -5.5 | M18: 9.526279442 | O18: -0.5 | P18: 0.8660254038
E19: 16 | F19: 8 | G19: 0.837758041 | H19: 7.431448255 | I19: 6.691306064 | K19: 130 | L19: -7.070663707 | M19: 8.426488874 | O19: -0.6427876097 | P19: 0.7660444431
E20: 17 | F20: 8.5 | G20: 0.8901179185 | H20: 7.771459615 | I20: 6.29320391 | K20: 140 | L20: -8.426488874 | M20: 7.070663707 | O20: -0.7660444431 | P20: 0.6427876097
E21: 18 | F21: 9 | G21: 0.9424777961 | H21: 8.090169944 | I21: 5.877852523 | K21: 150 | L21: -9.526279442 | M21: 5.5 | O21: -0.8660254038 | P21: 0.5
E22: 19 | F22: 9.5 | G22: 0.9948376736 | H22: 8.386705679 | I22: 5.44639035 | K22: 160 | L22: -10.33661883 | M22: 3.762221577 | O22: -0.9396926208 | P22: 0.3420201433
E23: 20 | F23: 10 | G23: 1.047197551 | H23: 8.660254038 | I23: 5 | K23: 170 | L23: -10.83288528 | M23: 1.910129954 | O23: -0.984807753 | P23: 0.1736481777
E24: 21 | F24: 10.5 | G24: 1.099557429 | H24: 8.910065242 | I24: 4.539904997 | K24: 180 | L24: -11 | M24: 1.3476633e-15 | O24: -1 | P24: 1.225148455e-16
E25: 22 | F25: 11 | G25: 1.151917306 | H25: 9.135454576 | I25: 4.067366431 | K25: 190 | L25: -10.83288528 | M25: -1.910129954 | O25: -0.984807753 | P25: -0.1736481777
E26: 23 | F26: 11.5 | G26: 1.204277184 | H26: 9.335804265 | I26: 3.583679495 | K26: 200 | L26: -10.33661883 | M26: -3.762221577 | O26: -0.9396926208 | P26: -0.3420201433
E27: 24 | F27: 12 | G27: 1.256637061 | H27: 9.510565163 | I27: 3.090169944 | K27: 210 | L27: -9.526279442 | M27: -5.5 | O27: -0.8660254038 | P27: -0.5
E28: 25 | F28: 12.5 | G28: 1.308996939 | H28: 9.659258263 | I28: 2.588190451 | K28: 220 | L28: -8.426488874 | M28: -7.070663707 | O28: -0.7660444431 | P28: -0.6427876097
E29: 26 | F29: 13 | G29: 1.361356817 | H29: 9.781476007 | I29: 2.079116908 | K29: 230 | L29: -7.070663707 | M29: -8.426488874 | O29: -0.6427876097 | P29: -0.7660444431
E30: 27 | F30: 13.5 | G30: 1.413716694 | H30: 9.876883406 | I30: 1.56434465 | K30: 240 | L30: -5.5 | M30: -9.526279442 | O30: -0.5 | P30: -0.8660254038
E31: 28 | F31: 14 | G31: 1.466076572 | H31: 9.945218954 | I31: 1.045284633 | K31: 250 | L31: -3.762221577 | M31: -10.33661883 | O31: -0.3420201433 | P31: -0.9396926208
E32: 29 | F32: 14.5 | G32: 1.518436449 | H32: 9.986295348 | I32: 0.5233595624 | K32: 260 | L32: -1.910129954 | M32: -10.83288528 | O32: -0.1736481777 | P32: -0.984807753
E33: 30 | F33: 15 | G33: 1.570796327 | H33: 10 | I33: 6.125742275e-16 | K33: 270 | L33: -2.021494951e-15 | M33: -11 | O33: -1.837722682e-16 | P33: -1
E34: 31 | F34: 15.5 | G34: 1.623156204 | H34: 9.986295348 | I34: -0.5233595624 | K34: 280 | L34: 1.910129954 | M34: -10.83288528 | O34: 0.1736481777 | P34: -0.984807753
E35: 32 | F35: 16 | G35: 1.675516082 | H35: 9.945218954 | I35: -1.045284633 | K35: 290 | L35: 3.762221577 | M35: -10.33661883 | O35: 0.3420201433 | P35: -0.9396926208
E36: 33 | F36: 16.5 | G36: 1.727875959 | H36: 9.876883406 | I36: -1.56434465 | K36: 300 | L36: 5.5 | M36: -9.526279442 | O36: 0.5 | P36: -0.8660254038
E37: 34 | F37: 17 | G37: 1.780235837 | H37: 9.781476007 | I37: -2.079116908 | K37: 310 | L37: 7.070663707 | M37: -8.426488874 | O37: 0.6427876097 | P37: -0.7660444431
E38: 35 | F38: 17.5 | G38: 1.832595715 | H38: 9.659258263 | I38: -2.588190451 | K38: 320 | L38: 8.426488874 | M38: -7.070663707 | O38: 0.7660444431 | P38: -0.6427876097
E39: 36 | F39: 18 | G39: 1.884955592 | H39: 9.510565163 | I39: -3.090169944 | K39: 330 | L39: 9.526279442 | M39: -5.5 | O39: 0.8660254038 | P39: -0.5
E40: 37 | F40: 18.5 | G40: 1.93731547 | H40: 9.335804265 | I40: -3.583679495 | K40: 340 | L40: 10.33661883 | M40: -3.762221577 | O40: 0.9396926208 | P40: -0.3420201433
E41: 38 | F41: 19 | G41: 1.989675347 | H41: 9.135454576 | I41: -4.067366431 | K41: 350 | L41: 10.83288528 | M41: -1.910129954 | O41: 0.984807753 | P41: -0.1736481777
E42: 39 | F42: 19.5 | G42: 2.042035225 | H42: 8.910065242 | I42: -4.539904997 | K42: 360 | L42: 11 | M42: -2.695326601e-15 | O42: 1 | P42: -2.45029691e-16
E43: 40 | F43: 20 | G43: 2.094395102 | H43: 8.660254038 | I43: -5
E44: 41 | F44: 20.5 | G44: 2.14675498 | H44: 8.386705679 | I44: -5.44639035
E45: 42 | F45: 21 | G45: 2.199114858 | H45: 8.090169944 | I45: -5.877852523
E46: 43 | F46: 21.5 | G46: 2.251474735 | H46: 7.771459615 | I46: -6.29320391
E47: 44 | F47: 22 | G47: 2.303834613 | H47: 7.431448255 | I47: -6.691306064
E48: 45 | F48: 22.5 | G48: 2.35619449 | H48: 7.071067812 | I48: -7.071067812
E49: 46 | F49: 23 | G49: 2.408554368 | H49: 6.691306064 | I49: -7.431448255
E50: 47 | F50: 23.5 | G50: 2.460914245 | H50: 6.29320391 | I50: -7.771459615
E51: 48 | F51: 24 | G51: 2.513274123 | H51: 5.877852523 | I51: -8.090169944
E52: 49 | F52: 24.5 | G52: 2.565634 | H52: 5.44639035 | I52: -8.386705679
E53: 50 | F53: 25 | G53: 2.617993878 | H53: 5 | I53: -8.660254038
E54: 51 | F54: 25.5 | G54: 2.670353756 | H54: 4.539904997 | I54: -8.910065242
E55: 52 | F55: 26 | G55: 2.722713633 | H55: 4.067366431 | I55: -9.135454576
E56: 53 | F56: 26.5 | G56: 2.775073511 | H56: 3.583679495 | I56: -9.335804265
E57: 54 | F57: 27 | G57: 2.827433388 | H57: 3.090169944 | I57: -9.510565163
E58: 55 | F58: 27.5 | G58: 2.879793266 | H58: 2.588190451 | I58: -9.659258263
E59: 56 | F59: 28 | G59: 2.932153143 | H59: 2.079116908 | I59: -9.781476007
E60: 57 | F60: 28.5 | G60: 2.984513021 | H60: 1.56434465 | I60: -9.876883406
E61: 58 | F61: 29 | G61: 3.036872898 | H61: 1.045284633 | I61: -9.945218954
E62: 59 | F62: 29.5 | G62: 3.089232776 | H62: 0.5233595624 | I62: -9.986295348
E63: 60 | F63: 30 | G63: 3.141592654 | H63: 1.225148455e-15 | I63: -10
E64: 61 | F64: 30.5 | G64: 3.193952531 | H64: -0.5233595624 | I64: -9.986295348
E65: 62 | F65: 31 | G65: 3.246312409 | H65: -1.045284633 | I65: -9.945218954
E66: 63 | F66: 31.5 | G66: 3.298672286 | H66: -1.56434465 | I66: -9.876883406
E67: 64 | F67: 32 | G67: 3.351032164 | H67: -2.079116908 | I67: -9.781476007
E68: 65 | F68: 32.5 | G68: =C$6*F68 -> 3.403392041 | H68: =C$3*SIN(G68) -> -2.588190451 | I68: =C$3*COS(G68) -> -9.659258263
E69: 66 | F69: =F68+C$4 -> 33 | G69: 3.455751919 | H69: -3.090169944 | I69: -9.510565163
E70: 67 | F70: 33.5 | G70: 3.508111797 | H70: -3.583679495 | I70: -9.335804265
E71: 68 | F71: 34 | G71: 3.560471674 | H71: -4.067366431 | I71: -9.135454576
E72: 69 | F72: 34.5 | G72: 3.612831552 | H72: -4.539904997 | I72: -8.910065242
E73: 70 | F73: 35 | G73: 3.665191429 | H73: -5 | I73: -8.660254038
E74: 71 | F74: 35.5 | G74: 3.717551307 | H74: -5.44639035 | I74: -8.386705679
E75: 72 | F75: 36 | G75: 3.769911184 | H75: -5.877852523 | I75: -8.090169944
E76: 73 | F76: 36.5 | G76: 3.822271062 | H76: -6.29320391 | I76: -7.771459615
E77: 74 | F77: 37 | G77: 3.874630939 | H77: -6.691306064 | I77: -7.431448255
E78: 75 | F78: 37.5 | G78: 3.926990817 | H78: -7.071067812 | I78: -7.071067812
E79: 76 | F79: 38 | G79: 3.979350695 | H79: -7.431448255 | I79: -6.691306064
E80: 77 | F80: 38.5 | G80: 4.031710572 | H80: -7.771459615 | I80: -6.29320391
E81: 78 | F81: 39 | G81: 4.08407045 | H81: -8.090169944 | I81: -5.877852523
E82: 79 | F82: 39.5 | G82: 4.136430327 | H82: -8.386705679 | I82: -5.44639035
E83: 80 | F83: 40 | G83: 4.188790205 | H83: -8.660254038 | I83: -5
E84: 81 | F84: 40.5 | G84: 4.241150082 | H84: -8.910065242 | I84: -4.539904997
E85: 82 | F85: 41 | G85: 4.29350996 | H85: -9.135454576 | I85: -4.067366431
E86: 83 | F86: 41.5 | G86: 4.345869837 | H86: -9.335804265 | I86: -3.583679495
E87: 84 | F87: 42 | G87: 4.398229715 | H87: -9.510565163 | I87: -3.090169944
E88: 85 | F88: 42.5 | G88: 4.450589593 | H88: -9.659258263 | I88: -2.588190451
E89: 86 | F89: 43 | G89: 4.50294947 | H89: -9.781476007 | I89: -2.079116908
E90: 87 | F90: 43.5 | G90: 4.555309348 | H90: -9.876883406 | I90: -1.56434465
E91: 88 | F91: 44 | G91: 4.607669225 | H91: -9.945218954 | I91: -1.045284633
E92: 89 | F92: 44.5 | G92: 4.660029103 | H92: -9.986295348 | I92: -0.5233595624
E93: 90 | F93: 45 | G93: 4.71238898 | H93: -10 | I93: -1.837722682e-15
E94: 91 | F94: 45.5 | G94: 4.764748858 | H94: -9.986295348 | I94: 0.5233595624
E95: 92 | F95: 46 | G95: 4.817108736 | H95: -9.945218954 | I95: 1.045284633
E96: 93 | F96: 46.5 | G96: 4.869468613 | H96: -9.876883406 | I96: 1.56434465
E97: 94 | F97: 47 | G97: 4.921828491 | H97: -9.781476007 | I97: 2.079116908
E98: 95 | F98: 47.5 | G98: 4.974188368 | H98: -9.659258263 | I98: 2.588190451
E99: 96 | F99: 48 | G99: 5.026548246 | H99: -9.510565163 | I99: 3.090169944
E100: 97 | F100: 48.5 | G100: 5.078908123 | H100: -9.335804265 | I100: 3.583679495
E101: 98 | F101: 49 | G101: 5.131268001 | H101: -9.135454576 | I101: 4.067366431
E102: 99 | F102: 49.5 | G102: 5.183627878 | H102: -8.910065242 | I102: 4.539904997
E103: 100 | F103: 50 | G103: 5.235987756 | H103: -8.660254038 | I103: 5
E104: 101 | F104: 50.5 | G104: 5.288347634 | H104: -8.386705679 | I104: 5.44639035
E105: 102 | F105: 51 | G105: 5.340707511 | H105: -8.090169944 | I105: 5.877852523
E106: 103 | F106: 51.5 | G106: 5.393067389 | H106: -7.771459615 | I106: 6.29320391
E107: 104 | F107: 52 | G107: 5.445427266 | H107: -7.431448255 | I107: 6.691306064
E108: 105 | F108: 52.5 | G108: 5.497787144 | H108: -7.071067812 | I108: 7.071067812
E109: 106 | F109: 53 | G109: 5.550147021 | H109: -6.691306064 | I109: 7.431448255
E110: 107 | F110: 53.5 | G110: 5.602506899 | H110: -6.29320391 | I110: 7.771459615
E111: 108 | F111: 54 | G111: 5.654866776 | H111: -5.877852523 | I111: 8.090169944
E112: 109 | F112: 54.5 | G112: 5.707226654 | H112: -5.44639035 | I112: 8.386705679
E113: 110 | F113: 55 | G113: 5.759586532 | H113: -5 | I113: 8.660254038
E114: 111 | F114: 55.5 | G114: 5.811946409 | H114: -4.539904997 | I114: 8.910065242
E115: 112 | F115: 56 | G115: 5.864306287 | H115: -4.067366431 | I115: 9.135454576
E116: 113 | F116: 56.5 | G116: 5.916666164 | H116: -3.583679495 | I116: 9.335804265
E117: 114 | F117: 57 | G117: 5.969026042 | H117: -3.090169944 | I117: 9.510565163
E118: 115 | F118: 57.5 | G118: 6.021385919 | H118: -2.588190451 | I118: 9.659258263
E119: 116 | F119: 58 | G119: 6.073745797 | H119: -2.079116908 | I119: 9.781476007
E120: 117 | F120: 58.5 | G120: 6.126105675 | H120: -1.56434465 | I120: 9.876883406
E121: 118 | F121: 59 | G121: 6.178465552 | H121: -1.045284633 | I121: 9.945218954
E122: 119 | F122: 59.5 | G122: 6.23082543 | H122: -0.5233595624 | I122: 9.986295348
E123: 120 | F123: 60 | G123: 6.283185307 | H123: -2.45029691e-15 | I123: 10
